fUST/lending_fUST_20240508
["ID","MTS","AMOUNT","RATE_DAILY","PERIOD"]
[326638718,1715178651683,-620.06283729,0.00022177,2]
[326638719,1715178651694,-316.0,0.00022192,2]
[326638720,1715178651705,-408.584913,0.00022264,2]
[326638721,1715178651715,-544.332914,0.00022264,2]
[326638722,1715178651726,-234.83173519,0.000223,2]
[326638723,1715178651736,-166.666666,0.00022431,2]
[326638724,1715178651746,-316.0,0.00022466,2]
[326638725,1715178651777,-589.0,0.000225,2]
[326638726,1715178651792,-206.420256,0.00022537,2]
[326638727,1715178651802,-160.383567,0.00022537,2]
[326638728,1715178651813,-206.420259,0.00022537,2]
[326638729,1715178651824,-189.136329,0.00022537,2]
[326638730,1715178651834,-208.747449,0.00022537,2]
[326638731,1715178651844,-225.433183,0.00022537,2]
[326638732,1715178651856,-240.917432,0.00022537,2]
[326638733,1715178651867,-233.873464,0.00022537,2]
[326638734,1715178651878,-183.635082,0.00022537,2]
[326638735,1715178651888,-167.554645,0.00022537,2]
[326638736,1715178651898,-534.560177,0.00022537,2]
[326638737,1715178651908,-281.874103,0.00022537,2]
[326638738,1715178651919,-240.996391,0.00022537,2]
[326638739,1715178651929,-160.849913,0.00022537,2]
[326638740,1715178651939,-159.166864,0.00022618,2]
[326638741,1715178651949,-316.0,0.0002274,2]
[326638742,1715178651959,-189.136329,0.00022819,2]
[326638743,1715178651969,-208.747449,0.00022819,2]
[326638744,1715178651980,-225.433183,0.00022819,2]
[326638745,1715178651990,-240.917432,0.00022819,2]
[326638746,1715178652000,-233.873464,0.00022819,2]
[326638747,1715178652014,-534.560177,0.00022819,2]
[326638748,1715178652027,-281.874103,0.00022819,2]
[326638749,1715178652037,-166.666666,0.00022944,2]
[326638750,1715178652047,-714.82665538,0.00023,2]
[326638751,1715178652059,-154.73694719,0.00023,2]
[326638752,1715178652069,-5013.64510414,0.00023,2]
[326638753,1715178652079,-150.0,0.00023,2]
[326638754,1715178652090,-316.0,0.00023014,2]
[326638755,1715178652100,-316.0,0.00023014,2]
[326638756,1715178652112,-189.136329,0.00023101,2]
[326638757,1715178652121,-208.747449,0.00023101,2]
[326638758,1715178652131,-225.433183,0.00023101,2]
[326638759,1715178652140,-240.917432,0.00023101,2]
[326638760,1715178652150,-233.873464,0.00023101,2]
[326638761,1715178652159,-281.874103,0.00023101,2]
[326638762,1715178652169,-534.560177,0.00023101,2]
[326638763,1715178652178,-403.9,0.00023192,3]
[326638764,1715178652188,-620.00314186,0.00023286,2]
[326638765,1715178652199,-151.0,0.00023299,2]
[326638766,1715178652210,-189.136329,0.00023383,2]
[326638767,1715178652219,-208.747449,0.00023383,2]
[326638768,1715178652229,-225.433183,0.00023383,2]
[326638769,1715178652239,-240.917432,0.00023383,2]
[326638770,1715178652249,-233.873464,0.00023383,2]
[326638771,1715178652258,-281.874103,0.00023383,2]
[326638772,1715178652269,-534.560177,0.00023383,2]
[326638773,1715178652278,-166.666666,0.00023456,2]
[326638774,1715178652287,-156.9622489,0.0002355,2]
[326638775,1715178652297,-160.383567,0.00023664,2]
[326638776,1715178652306,-183.635082,0.00023664,2]
[326638777,1715178652316,-189.136329,0.00023664,2]
[326638778,1715178652325,-208.747449,0.00023664,2]
[326638779,1715178652335,-225.433183,0.00023664,2]
[326638780,1715178652344,-240.917432,0.00023664,2]
[326638781,1715178652353,-233.873464,0.00023664,2]
[326638782,1715178652364,-281.874103,0.00023664,2]
[326638783,1715178652374,-534.560177,0.00023664,2]
[326638784,1715178652383,-6478.6900858,0.000239,2]
[326638785,1715178652393,-166.666666,0.00023969,2]
[326638786,1715178652403,-694.57662776,0.00024,2]
[326638787,1715178652413,-316.0,0.00024164,2]
[326638788,1715178652422,-316.0,0.00024164,2]
[326638789,1715178652431,-306.0,0.0002437,2]
[326638790,1715178652441,-153.0,0.00024384,2]
[326638791,1715178652450,-620.00015709,0.00024451,2]
[326638792,1715178652460,-166.666666,0.00024482,2]
[326638793,1715178652469,-403.9,0.00024528,5]
[326638794,1715178652486,-3000.0,0.000246,3]
[326638795,1715178652496,-150.91370362,0.00024603,2]
[326638796,1715178652507,-1795.38668357,0.00024606,2]
[326638797,1715178652517,-1300.0,0.00024612,2]
[326638798,1715178652527,-150.91370362,0.00024623,2]
[326638799,1715178652537,-972.87310957,0.00024638,2]
[326638800,1715178652547,-1795.38668357,0.00024643,2]
[326638801,1715178652556,-500.0,0.00024657,2]
[326638802,1715178652566,-500.0,0.00024657,2]
[326638803,1715178652575,-501.77178359,0.00024657,2]
[326638804,1715178652585,-500.0,0.00024657,2]
[326638805,1715178652595,-500.0,0.00024657,2]
[326638806,1715178652605,-500.0,0.00024657,2]
[326638807,1715178652618,-500.0,0.00024657,2]
[326638808,1715178652628,-500.0,0.00024657,2]
[326638809,1715178652638,-500.0,0.00024657,2]
[326638810,1715178652648,-300.0,0.00024657,2]
[326638811,1715178652658,-500.0,0.00024657,2]
[326638812,1715178652667,-500.0,0.00024657,2]
[326638813,1715178652677,-500.0,0.00024657,2]
[326638814,1715178652687,-500.0,0.00024657,2]
[326638815,1715178652696,-414.45272179,0.00024657,2]
[326638816,1715178652706,-500.0,0.00024657,2]
[326638817,1715178652715,-500.0,0.00024657,2]
[326638818,1715178652725,-500.0,0.00024657,2]
[326638819,1715178652735,-500.0,0.00024657,2]
[326638820,1715178652744,-500.0,0.00024657,2]
[326638821,1715178652754,-500.0,0.00024657,2]
[326638822,1715178652763,-500.15425266,0.00024657,2]
[326638823,1715178652859,-500.0,0.00024657,2]
[326638824,1715178652874,-500.0,0.00024657,2]
[326638825,1715178652883,-500.0,0.00024657,2]
[326638826,1715178652892,-500.0,0.00024657,2]
[326638827,1715178652901,-500.0,0.00024657,2]
[326638828,1715178652911,-500.31047149,0.00024657,2]
[326638829,1715178652920,-500.0,0.00024657,2]
[326638830,1715178652929,-500.0,0.00024657,2]
[326638831,1715178652938,-500.0,0.00024657,2]
[326638832,1715178652947,-655.2,0.00024657,2]
[326638833,1715178652957,-500.0,0.00024657,2]
[326638834,1715178652966,-500.0,0.00024657,2]
[326638835,1715178652976,-1000.0,0.00024657,2]
[326638836,1715178652985,-278.62713299,0.00024657,2]
[326638837,1715178652995,-500.0,0.00024657,2]
[326638838,1715178653004,-500.0,0.00024657,2]
[326638839,1715178653018,-500.0,0.00024657,2]
[326638840,1715178653028,-495.6017762,0.00024657,2]
[326638841,1715178653037,-500.0,0.00024657,2]
[326638842,1715178653047,-500.0,0.00024657,2]
[326638843,1715178653058,-500.0,0.00024657,2]
[326638844,1715178653067,-500.0,0.00024657,2]
[326638845,1715178653077,-505.54100582,0.00024657,2]
[326638846,1715178653087,-502.95269505,0.00024657,2]
[326638847,1715178653099,-593.5592765,0.00024657,2]
[326638848,1715178653108,-500.0,0.00024657,2]
[326638849,1715178653121,-500.71360552,0.00024657,2]
[326638850,1715178653130,-500.0,0.00024657,2]
[326638851,1715178653139,-500.0,0.00024657,2]
[326638852,1715178653148,-500.0,0.00024657,2]
[326638853,1715178653157,-500.0,0.00024657,2]
[326638854,1715178653167,-265.83733156,0.00024657,2]
[326638855,1715178653177,-500.0,0.00024657,2]
[326638856,1715178653200,-500.0,0.00024657,2]
[326638857,1715178653209,-500.0,0.00024657,2]
[326638858,1715178653220,-500.0,0.00024657,2]
[326638859,1715178653230,-500.0,0.00024657,2]
[326638860,1715178653240,-282.97168302,0.00024657,2]
[326638861,1715178653251,-500.0,0.00024657,2]
[326638862,1715178653261,-500.0,0.00024657,2]
[326638863,1715178653270,-500.0,0.00024657,2]
[326638864,1715178653279,-500.0,0.00024657,2]
[326638865,1715178653288,-500.0,0.00024657,2]
[326638866,1715178653297,-500.0,0.00024657,2]
[326638867,1715178653307,-300.0,0.00024657,2]
[326638868,1715178653317,-500.0,0.00024657,2]
[326638869,1715178653327,-500.0,0.00024657,2]
[326638870,1715178653337,-500.0,0.00024657,2]
[326638871,1715178653346,-500.0,0.00024657,2]
[326638872,1715178653355,-500.0,0.00024657,2]
[326638873,1715178653368,-380.61823177,0.00024657,2]
[326638874,1715178653377,-500.0,0.00024657,2]
[326638875,1715178653386,-500.0,0.00024657,2]
[326638876,1715178653396,-501.64538408,0.00024657,2]
[326638877,1715178653405,-500.0,0.00024657,2]
[326638878,1715178653414,-500.0,0.00024657,2]
[326638879,1715178653424,-500.0,0.00024657,2]
[326638880,1715178653434,-291.90695137,0.00024657,2]
[326638881,1715178653444,-679.56,0.00024657,2]
[326638882,1715178653455,-500.0,0.00024657,2]
[326638883,1715178653464,-501.06353371,0.00024657,2]
[326638884,1715178653474,-500.0,0.00024657,2]
[326638885,1715178653483,-500.0,0.00024657,2]
[326638886,1715178653493,-500.0,0.00024657,2]
[326638887,1715178653502,-500.0,0.00024657,2]
[326638888,1715178653512,-1185.56,0.00024657,2]
[326638889,1715178653521,-500.0,0.00024657,2]
[326638890,1715178653531,-500.0,0.00024657,2]
[326638891,1715178653540,-500.0,0.00024657,2]
[326638892,1715178653550,-500.0,0.00024657,2]
[326638893,1715178653559,-500.0,0.00024657,2]
[326638894,1715178653568,-500.0,0.00024657,2]
[326638895,1715178653578,-500.0,0.00024657,2]
[326638896,1715178653587,-500.0,0.00024657,2]
[326638897,1715178653597,-500.0,0.00024657,2]
[326638898,1715178653607,-500.0,0.00024657,2]
[326638899,1715178653620,-500.0,0.00024657,2]
[326638900,1715178653630,-500.0,0.00024657,2]
[326638901,1715178653640,-500.0,0.00024657,2]
[326638902,1715178653650,-500.0,0.00024657,2]
[326638903,1715178653660,-500.0,0.00024657,2]
[326638904,1715178653670,-240.44820259,0.00024657,2]
[326638905,1715178653679,-500.0,0.00024657,2]
[326638906,1715178653690,-500.0,0.00024657,2]
[326638907,1715178653700,-500.0,0.00024657,2]
[326638908,1715178653713,-500.0,0.00024657,2]
[326638909,1715178653728,-500.0,0.00024657,2]
[326638910,1715178653738,-500.0,0.00024657,2]
[326638911,1715178653748,-504.57220645,0.00024657,2]
[326638912,1715178653759,-500.0,0.00024657,2]
[326638913,1715178653769,-500.0,0.00024657,2]
[326638914,1715178653779,-500.0,0.00024657,2]
[326638915,1715178653789,-500.0,0.00024657,2]
[326638916,1715178653798,-429.2642034,0.00024657,2]
[326638917,1715178653808,-500.0,0.00024657,2]
[326638918,1715178653819,-500.0,0.00024657,2]
[326638919,1715178653829,-500.0,0.00024657,2]
[326638920,1715178653839,-500.0,0.00024657,2]
[326638921,1715178653865,-500.0,0.00024657,2]
[326638922,1715178653888,-500.0,0.00024657,2]
[326638923,1715178653912,-500.0,0.00024657,2]
[326638924,1715178653935,-500.0,0.00024657,2]
[326638925,1715178653958,-500.0,0.00024657,2]
[326638926,1715178653980,-500.0,0.00024657,2]
[326638927,1715178654003,-500.0,0.00024657,2]
[326638928,1715178654025,-500.0,0.00024657,2]
[326638929,1715178654036,-500.0,0.00024657,2]
[326638930,1715178654046,-500.0,0.00024657,2]
[326638931,1715178654056,-500.0,0.00024657,2]
[326638932,1715178654066,-500.0,0.00024657,2]
[326638933,1715178654076,-500.0,0.00024657,2]
[326638934,1715178654086,-500.0,0.00024657,2]
[326638935,1715178654096,-500.0,0.00024657,2]
[326638936,1715178654107,-500.0,0.00024657,2]
[326638937,1715178654119,-500.0,0.00024657,2]
[326638938,1715178654129,-500.0,0.00024657,2]
[326638939,1715178654140,-500.0,0.00024657,2]
[326638940,1715178654150,-500.0,0.00024657,2]
[326638941,1715178654160,-187.78992473,0.00024657,2]
[326638942,1715178654170,-530.51852681,0.00024657,2]
[326638943,1715178654180,-500.0,0.00024657,2]
[326638944,1715178654190,-500.0,0.00024657,2]
[326638945,1715178654200,-500.0,0.00024657,2]
[326638946,1715178654210,-500.0,0.00024657,2]
[326638947,1715178654220,-842.85,0.00024657,2]
[326638948,1715178654230,-500.0,0.00024657,2]
[326638949,1715178654240,-500.0,0.00024657,2]
[326638950,1715178654250,-500.0,0.00024657,2]
[326638951,1715178654261,-500.0,0.00024657,2]
[326638952,1715178654271,-500.0,0.00024657,2]
[326638953,1715178654281,-151.0,0.00024657,2]
[326638954,1715178654291,-500.0,0.00024657,2]
[326638955,1715178654303,-500.0,0.00024657,2]
[326638956,1715178654314,-500.0,0.00024657,2]
[326638957,1715178654324,-500.0,0.00024657,2]
[326638958,1715178654334,-500.0,0.00024657,2]
[326638959,1715178654344,-500.0,0.00024657,2]
[326638960,1715178654424,-500.0,0.00024657,2]
[326638961,1715178654435,-500.0,0.00024657,2]
[326638962,1715178654444,-500.0,0.00024657,2]
[326638963,1715178654454,-492.62374807,0.00024657,2]
[326638964,1715178654464,-1061.49,0.00024657,2]
[326638965,1715178654474,-500.0,0.00024657,2]
[326638966,1715178654484,-566.76537189,0.00024657,2]
[326638967,1715178654494,-500.0,0.00024657,2]
[326638968,1715178654503,-500.0,0.00024657,2]
[326638969,1715178654513,-500.0,0.00024657,2]
[326638970,1715178654526,-500.0,0.00024657,2]
[326638971,1715178654536,-500.0,0.00024657,2]
[326638972,1715178654546,-500.0,0.00024657,2]
[326638973,1715178654556,-500.0,0.00024657,2]
[326638974,1715178654566,-500.0,0.00024657,2]
[326638975,1715178654575,-500.0,0.00024657,2]
[326638976,1715178654585,-500.0,0.00024657,2]
[326638977,1715178654595,-500.0,0.00024657,2]
[326638978,1715178654610,-309.76210639,0.00024657,2]
[326638979,1715178654624,-500.0,0.00024657,2]
[326638980,1715178654635,-500.0,0.00024657,2]
[326638981,1715178654645,-500.0,0.00024657,2]
[326638982,1715178654656,-500.0,0.00024657,2]
[326638983,1715178654666,-500.0,0.00024657,2]
[326638984,1715178654678,-513.45127921,0.00024657,2]
[326638985,1715178654689,-500.0,0.00024657,2]
[326638986,1715178654699,-500.0,0.00024657,2]
[326638987,1715178654710,-500.0,0.00024657,2]
[326638988,1715178654720,-500.0,0.00024657,2]
[326638989,1715178654729,-500.0,0.00024657,2]
[326638990,1715178654740,-500.0,0.00024657,2]
[326638991,1715178654750,-500.0,0.00024657,2]
[326638992,1715178654761,-500.0,0.00024657,2]
[326638993,1715178654771,-500.0,0.00024657,2]
[326638994,1715178654782,-680.49,0.00024657,2]
[326638995,1715178654792,-500.0,0.00024657,2]
[326638996,1715178654803,-500.0,0.00024657,2]
[326638997,1715178654814,-604.02,0.00024657,2]
[326638998,1715178654825,-154.7215013,0.00024657,2]
[326638999,1715178654835,-500.0,0.00024657,2]
[326639000,1715178654845,-500.0,0.00024657,2]
[326639001,1715178654855,-500.0,0.00024657,2]
[326639002,1715178654867,-333.46863879,0.00024657,2]
[326639003,1715178654877,-500.0,0.00024657,2]
[326639004,1715178654887,-500.0,0.00024657,2]
[326639005,1715178654896,-500.0,0.00024657,2]
[326639006,1715178654906,-500.0,0.00024657,2]
[326639007,1715178654916,-500.0,0.00024657,2]
[326639008,1715178654926,-500.0,0.00024657,2]
[326639009,1715178654936,-500.0,0.00024657,2]
[326639010,1715178654946,-500.0,0.00024657,2]
[326639011,1715178654955,-500.0,0.00024657,2]
[326639012,1715178654965,-500.0,0.00024657,2]
[326639013,1715178654975,-500.0,0.00024657,2]
[326639014,1715178654984,-500.0,0.00024657,2]
[326639015,1715178654994,-500.0,0.00024657,2]
[326639016,1715178655004,-500.0,0.00024657,2]
[326639017,1715178655018,-500.0,0.00024657,2]
[326639018,1715178655028,-1367.09,0.00024657,2]
[326639019,1715178655038,-500.0,0.00024657,2]
[326639020,1715178655048,-500.0,0.00024657,2]
[326639021,1715178655059,-500.0,0.00024657,2]
[326639022,1715178655068,-500.0,0.00024657,2]
[326639023,1715178655078,-500.0,0.00024657,2]
[326639024,1715178655088,-500.0,0.00024657,2]
[326639025,1715178655100,-500.0,0.00024657,2]
[326639026,1715178655110,-500.0,0.00024657,2]
[326639027,1715178655121,-500.0,0.00024657,2]
[326639028,1715178655131,-505.53425023,0.00024657,2]
[326639029,1715178655141,-500.0,0.00024657,2]
[326639030,1715178655151,-521.69943983,0.00024657,2]
[326639031,1715178655161,-500.0,0.00024657,2]
[326639032,1715178655171,-413.76407704,0.00024657,2]
[326639033,1715178655181,-500.0,0.00024657,2]
[326639034,1715178655192,-500.0,0.00024657,2]
[326639035,1715178655202,-580.28,0.00024657,2]
[326639036,1715178655212,-500.0,0.00024657,2]
[326639037,1715178655222,-500.0,0.00024657,2]
[326639038,1715178655233,-582.09,0.00024657,2]
[326639039,1715178655243,-582.09,0.00024657,2]
[326639040,1715178655252,-582.09,0.00024657,2]
[326639041,1715178655262,-500.0,0.00024657,2]
[326639042,1715178655273,-500.0,0.00024657,2]
[326639043,1715178655282,-582.09,0.00024657,2]
[326639044,1715178655294,-582.09,0.00024657,2]
[326639045,1715178655306,-582.09,0.00024657,2]
[326639046,1715178655316,-582.09,0.00024657,2]
[326639047,1715178655327,-582.09,0.00024657,2]
[326639048,1715178655337,-500.0,0.00024657,2]
[326639049,1715178655347,-582.09,0.00024657,2]
[326639050,1715178655358,-500.0,0.00024657,2]
[326639051,1715178655370,-582.09,0.00024657,2]
[326639052,1715178655380,-582.09,0.00024657,2]
[326639053,1715178655390,-582.09,0.00024657,2]
[326639054,1715178655400,-540.95,0.00024657,2]
[326639055,1715178655411,-582.09,0.00024657,2]
[326639056,1715178655421,-500.0,0.00024657,2]
[326639057,1715178655432,-500.0,0.00024657,2]
[326639058,1715178655442,-582.09,0.00024657,2]
[326639059,1715178655452,-582.09,0.00024657,2]
[326639060,1715178655463,-582.09,0.00024657,2]
[326639061,1715178655473,-500.0,0.00024657,2]
[326639062,1715178655483,-582.09,0.00024657,2]
[326639063,1715178655493,-582.09,0.00024657,2]
[326639064,1715178655503,-582.09,0.00024657,2]
[326639065,1715178655513,-582.09,0.00024657,2]
[326639066,1715178655523,-582.09,0.00024657,2]
[326639067,1715178655533,-500.0,0.00024657,2]
[326639068,1715178655543,-582.09,0.00024657,2]
[326639069,1715178655553,-582.09,0.00024657,2]
[326639070,1715178655564,-582.21306371,0.00024657,2]
[326639071,1715178655574,-500.0,0.00024657,2]
[326639072,1715178655585,-500.0,0.00024657,2]
[326639073,1715178655596,-500.0,0.00024657,2]
[326639074,1715178655606,-500.0,0.00024657,2]
[326639075,1715178655619,-500.6764767,0.00024657,2]
[326639076,1715178655630,-500.45379467,0.00024657,2]
[326639077,1715178655641,-500.0,0.00024657,2]
[326639078,1715178655652,-500.0,0.00024657,2]
[326639079,1715178655662,-500.0,0.00024657,2]
[326639080,1715178655673,-500.0,0.00024657,2]
[326639081,1715178655684,-500.66385065,0.00024657,2]
[326639082,1715178655694,-500.0,0.00024657,2]
[326639083,1715178655704,-500.0,0.00024657,2]
[326639084,1715178655714,-500.0,0.00024657,2]
[326639085,1715178655726,-500.0,0.00024657,2]
[326639086,1715178655736,-500.0,0.00024657,2]
[326639087,1715178655815,-500.0,0.00024657,2]
[326639088,1715178655825,-500.0,0.00024657,2]
[326639089,1715178655835,-500.0,0.00024657,2]
[326639090,1715178655845,-500.0,0.00024657,2]
[326639091,1715178655855,-500.60821547,0.00024657,2]
[326639092,1715178655866,-500.0,0.00024657,2]
[326639093,1715178655876,-500.0,0.00024657,2]
[326639094,1715178655886,-500.0,0.00024657,2]
[326639095,1715178655896,-500.0,0.00024657,2]
[326639096,1715178655906,-500.0,0.00024657,2]
[326639097,1715178655916,-500.0,0.00024657,2]
[326639098,1715178655925,-500.0,0.00024657,2]
[326639099,1715178655935,-647.39,0.00024657,2]
[326639100,1715178655945,-510.21530336,0.00024657,2]
[326639101,1715178655955,-500.0,0.00024657,2]
[326639102,1715178655964,-500.0,0.00024657,2]
[326639103,1715178655974,-500.0,0.00024657,2]
[326639104,1715178655984,-500.0,0.00024657,2]
[326639105,1715178655993,-500.0,0.00024657,2]
[326639106,1715178656003,-500.0,0.00024657,2]
[326639107,1715178656017,-500.0,0.00024657,2]
[326639108,1715178656028,-500.0,0.00024657,2]
[326639109,1715178656038,-500.0,0.00024657,2]
[326639110,1715178656047,-500.0,0.00024657,2]
[326639111,1715178656058,-500.0,0.00024657,2]
[326639112,1715178656068,-500.0,0.00024657,2]
[326639113,1715178656078,-661.88,0.00024657,2]
[326639114,1715178656088,-500.0,0.00024657,2]
[326639115,1715178656099,-500.0,0.00024657,2]
[326639116,1715178656110,-500.0,0.00024657,2]
[326639117,1715178656122,-500.0,0.00024657,2]
[326639118,1715178656132,-500.0,0.00024657,2]
[326639119,1715178656141,-500.0,0.00024657,2]
[326639120,1715178656151,-500.0,0.00024657,2]
[326639121,1715178656160,-536.66307071,0.00024657,2]
[326639122,1715178656170,-500.0,0.00024657,2]
[326639123,1715178656180,-500.0,0.00024657,2]
[326639124,1715178656190,-500.0,0.00024657,2]
[326639125,1715178656200,-500.0,0.00024657,2]
[326639126,1715178656210,-500.0,0.00024657,2]
[326639127,1715178656220,-500.0,0.00024657,2]
[326639128,1715178656229,-500.0,0.00024657,2]
[326639129,1715178656240,-500.0,0.00024657,2]
[326639130,1715178656249,-500.0,0.00024657,2]
[326639131,1715178656260,-500.0,0.00024657,2]
[326639132,1715178656269,-500.0,0.00024657,2]
[326639133,1715178656279,-500.0,0.00024657,2]
[326639134,1715178656289,-500.0,0.00024657,2]
[326639135,1715178656299,-408.95884487,0.00024657,2]
[326639136,1715178656308,-622.55764886,0.00024657,2]
[326639137,1715178656318,-500.0,0.00024657,2]
[326639138,1715178656328,-500.0,0.00024657,2]
[326639139,1715178656337,-500.0,0.00024657,2]
[326639140,1715178656347,-598.59,0.00024657,2]
[326639141,1715178656357,-500.0,0.00024657,2]
[326639142,1715178656369,-500.89614398,0.00024657,2]
[326639143,1715178656379,-318.52120708,0.00024657,2]
[326639144,1715178656389,-710.16,0.00024657,2]
[326639145,1715178656399,-500.0,0.00024657,2]
[326639146,1715178656409,-500.0,0.00024657,2]
[326639147,1715178656418,-516.71220776,0.00024657,2]
[326639148,1715178656428,-500.0,0.00024657,2]
[326639149,1715178656439,-500.0,0.00024657,2]
[326639150,1715178656448,-502.08519115,0.00024657,2]
[326639151,1715178656458,-500.0,0.00024657,2]
[326639152,1715178656468,-500.0,0.00024657,2]
[326639153,1715178656477,-500.0,0.00024657,2]
[326639154,1715178656487,-500.26777093,0.00024657,2]
[326639155,1715178656497,-500.0,0.00024657,2]
[326639156,1715178656506,-500.0,0.00024657,2]
[326639157,1715178656517,-500.0,0.00024657,2]
[326639158,1715178656527,-500.0,0.00024657,2]
[326639159,1715178656537,-500.0,0.00024657,2]
[326639160,1715178656546,-500.0,0.00024657,2]
[326639161,1715178656556,-2637.22,0.00024657,2]
[326639162,1715178656566,-1227.56,0.00024657,2]
[326639163,1715178656576,-1231.68,0.00024657,2]
[326639164,1715178656585,-500.0,0.00024657,2]
[326639165,1715178656595,-500.0,0.00024657,2]
[326639166,1715178656604,-500.0,0.00024657,2]
[326639167,1715178656614,-500.0,0.00024657,2]
[326639168,1715178656624,-500.0,0.00024657,2]
[326639169,1715178656634,-500.0,0.00024657,2]
[326639170,1715178656644,-500.0,0.00024657,2]
[326639171,1715178656654,-500.0,0.00024657,2]
[326639172,1715178656664,-707.87,0.00024657,2]
[326639173,1715178656674,-500.0,0.00024657,2]
[326639174,1715178656683,-500.0,0.00024657,2]
[326639175,1715178656693,-500.0,0.00024657,2]
[326639176,1715178656703,-500.0,0.00024657,2]
[326639177,1715178656713,-500.0,0.00024657,2]
[326639178,1715178656723,-500.0,0.00024657,2]
[326639179,1715178656733,-500.0,0.00024657,2]
[326639180,1715178656743,-500.52797849,0.00024657,2]
[326639181,1715178656753,-500.0,0.00024657,2]
[326639182,1715178656763,-500.0,0.00024657,2]
[326639183,1715178656773,-500.0,0.00024657,2]
[326639184,1715178656782,-500.0,0.00024657,2]
[326639185,1715178656792,-500.0,0.00024657,2]
[326639186,1715178656802,-500.0,0.00024657,2]
[326639187,1715178656811,-500.0,0.00024657,2]
[326639188,1715178656824,-500.0,0.00024657,2]
[326639189,1715178656835,-500.0,0.00024657,2]
[326639190,1715178656845,-4734.82,0.00024657,2]
[326639191,1715178656855,-500.0,0.00024657,2]
[326639192,1715178656867,-500.0,0.00024657,2]
[326639193,1715178656877,-500.0,0.00024657,2]
[326639194,1715178656886,-500.0,0.00024657,2]
[326639195,1715178656896,-500.0,0.00024657,2]
[326639196,1715178656905,-500.0,0.00024657,2]
[326639197,1715178656916,-323.92383999,0.00024657,2]
[326639198,1715178656928,-500.0,0.00024657,2]
[326639199,1715178656938,-500.0,0.00024657,2]
[326639200,1715178656948,-5120.67,0.00024657,2]
[326639201,1715178656959,-485.58752744,0.00024657,2]
[326639202,1715178656969,-647.18,0.00024657,2]
[326639203,1715178657042,-500.0,0.00024657,2]
[326639204,1715178657051,-500.0,0.00024657,2]
[326639205,1715178657062,-500.0,0.00024657,2]
[326639206,1715178657072,-500.0,0.00024657,2]
[326639207,1715178657081,-500.0,0.00024657,2]
[326639208,1715178657092,-500.0,0.00024657,2]
[326639209,1715178657102,-500.0,0.00024657,2]
[326639210,1715178657112,-500.0,0.00024657,2]
[326639211,1715178657122,-500.0,0.00024657,2]
[326639212,1715178657133,-500.0,0.00024657,2]
[326639213,1715178657142,-635.77,0.00024657,2]
[326639214,1715178657151,-500.0,0.00024657,2]
[326639215,1715178657161,-500.0,0.00024657,2]
[326639216,1715178657171,-500.0,0.00024657,2]
[326639217,1715178657180,-500.0,0.00024657,2]